bitfinex/quotes_ETHUSD_20220218
["timestamp","ask_amount","ask_price","bid_price","bid_amount"]
[1645218697177,2.0947481,2787.1,2785.7,1.69100136]
[1645218697374,0.03179513,2787.3,2785.7,17.33835136]
[1645218697676,0.03179513,2787.3,2786.1,0.89733]
[1645218697871,0.03179513,2787.3,2786.6,0.88601179]
[1645218698273,0.92909623,2787.3,2786.6,0.88601179]
[1645218699174,1.82641623,2787.3,2786.6,0.88601179]
[1645218700630,0.89736,2787.2,2786.6,0.88601179]
[1645218701338,0.03178057,2787.0,2786.6,0.88601179]
[1645218706071,1.25,2787.8,2786.6,0.88601179]
[1645218706072,0.00248933,2787.5,2786.6,0.88601179]
[1645218706873,1.2778348,2787.6,2786.6,0.88601179]
[1645218707145,1.7947847,2787.3,2786.6,0.88601179]
[1645218707330,0.89735,2787.2,2786.6,0.88601179]
[1645218707932,0.89735,2787.2,2786.2,4.22506]
[1645218708134,1.7946856,2787.2,2786.2,4.22506]
[1645218708334,0.0024894,2787.5,2786.2,7.72506]
[1645218708535,0.0024894,2787.5,2786.3,11.25]
[1645218708737,0.0024894,2787.5,2786.6,0.89713]
[1645218708933,0.0024894,2787.5,2786.7,4.1]
[1645218709334,0.6780163,2788.1,2786.8,1.0]
[1645218709532,0.6780163,2788.1,2786.9,3.5]
[1645218709733,0.00248953,2787.5,2787.4,0.81260132]
[1645218709934,0.00248953,2787.5,2787.4,0.20061462]
[1645218710534,0.8970561,2788.1,2787.4,0.20061462]
[1645218710734,1.5750363,2788.2,2787.4,0.20061462]
[1645218710978,0.00248966,2787.6,2787.4,0.20061462]
[1645218711278,0.00248966,2787.6,2787.4,1.09759462]
[1645218711679,0.89702,2788.2,2787.4,1.09759462]
[1645218711876,0.6780163,2788.3,2787.4,1.09759462]
[1645218711877,0.55583835,2788.1,2787.4,1.09759462]
[1645218712075,0.00248965,2787.6,2787.4,1.09759462]
[1645218712881,0.55583835,2787.7,2787.4,1.09759462]
[1645218713075,0.55583835,2787.6,2787.4,1.09759462]
[1645218713274,0.00248965,2787.6,2787.4,1.09759462]
[1645218714076,1.23389217,2788.2,2787.4,1.09759462]
[1645218714481,0.00248965,2787.6,2787.4,1.09759462]
[1645218715322,0.55599484,2787.7,2787.4,1.09759462]
[1645218715528,2.79645189,2788.5,2787.4,1.09759462]
[1645218715529,0.00248965,2787.6,2787.4,1.09759462]
[1645218715725,0.00248965,2787.6,2787.5,0.72541695]
[1645218715927,0.00248965,2787.6,2787.5,15.17541695]
[1645218716132,0.00248965,2787.6,2787.5,16.47541695]
[1645218716323,0.00248965,2787.6,2787.5,17.20541695]
[1645218716526,0.35734,2788.5,2787.5,17.20541695]
[1645218716724,0.55695768,2788.4,2787.8,10.95]
[1645218716924,0.55695768,2788.4,2788.1,11.80956732]
[1645218717126,0.55695768,2788.4,2788.2,3.5]
[1645218717327,0.48734,2788.9,2788.4,17.45]
[1645218717532,0.48734,2788.9,2788.4,17.88]
[1645218717727,4e-05,2788.9,2788.6,10.95]
[1645218717928,4e-05,2788.9,2788.8,10.95]
[1645218718130,0.6791437,2789.6,2789.4,0.82335965]
[1645218718374,0.6791437,2789.7,2789.4,0.82335965]
[1645218718877,0.6791437,2789.7,2788.6,13.89665]
[1645218719077,0.6791437,2789.7,2788.8,1.7928]
[1645218719281,0.6791437,2789.6,2788.8,1.7928]
[1645218719782,0.6791437,2789.6,2788.8,2.67475557]
[1645218720178,1.53358662,2789.8,2788.8,2.67475557]
[1645218720377,0.00248927,2789.3,2788.8,2.67475557]
[1645218720979,0.00248927,2789.3,2789.0,10.95]
[1645218721188,0.00248927,2789.3,2788.9,2.79266]
[1645218721380,0.6791437,2790.2,2788.9,2.79266]
[1645218721579,0.6791437,2790.2,2789.9,0.85399294]
[1645218721978,0.67852858,2790.2,2789.9,0.85399294]
[1645218722852,0.68101766,2790.2,2789.9,0.85399294]
[1645218723054,0.67852858,2790.1,2789.9,0.85399294]
[1645218723257,0.00248908,2790.2,2789.9,0.85399294]
[1645218723766,0.896312,2790.4,2789.9,0.85399294]
[1645218724157,0.00248908,2790.2,2789.9,0.85399294]
[1645218725056,1.196312,2790.4,2789.9,0.85399294]
[1645218725257,0.00186659,2790.3,2789.9,0.85399294]
[1645218725657,0.02991328,2790.1,2789.9,0.85399294]
[1645218726282,0.02991328,2790.1,2790.0,3.5]
[1645218726678,0.01549902,2790.1,2790.0,14.45]
[1645218726878,0.01549902,2790.1,2790.0,18.9001]
[1645218727081,0.01549902,2790.1,2790.0,19.3301]
[1645218727276,0.01533472,2790.2,2790.1,17.45]
[1645218727479,0.00557908,2791.3,2790.1,21.95]
[1645218727678,0.00557908,2791.3,2790.4,0.89597]
[1645218727877,0.00557908,2791.3,2790.4,4.39597]
[1645218728279,0.00557908,2791.3,2790.4,0.89597]
[1645218728280,0.25557908,2791.3,2790.4,0.89597]
[1645218728479,0.00557908,2791.2,2790.5,3.5]
[1645218728681,0.00557908,2791.2,2790.5,0.83994856]
[1645218728879,0.0024889,2791.0,2790.6,0.89592]
[1645218729288,0.0024889,2791.0,2790.7,10.95]
[1645218729738,0.00557908,2791.5,2790.8,1.79135]
[1645218729937,0.00557908,2791.7,2790.8,0.16732076]
[1645218730144,0.0024889,2791.0,2790.8,0.16732076]
[1645218730443,0.0024889,2791.0,2790.8,1.06300076]
[1645218730645,0.00557908,2791.8,2790.9,20.13665]
[1645218730845,0.00557908,2791.8,2791.0,0.43]
[1645218731350,0.00557908,2791.8,2791.7,0.62767744]
[1645218731541,0.25,2791.9,2791.7,0.62767744]
[1645218732440,0.25186483,2791.9,2791.7,0.62767744]
[1645218732740,0.25186483,2791.9,2791.5,0.89559]
[1645218733384,0.25,2791.9,2791.5,0.89559]
[1645218733780,0.00186483,2791.8,2791.6,0.76174365]
[1645218734680,0.00557908,2792.6,2791.8,0.89558]
[1645218735082,0.00557908,2792.6,2791.7,1.79115]
[1645218735285,1.56487942,2792.5,2790.8,3.89921]
[1645218735483,0.00557908,2792.4,2790.8,1.2126]
[1645218735681,0.8959469,2792.0,2790.8,1.2126]
[1645218735881,0.00557908,2791.9,2790.8,1.2126]
[1645218736081,0.00248874,2791.7,2790.8,1.2126]
[1645218736280,0.00248874,2791.7,2790.9,0.87658917]
[1645218736488,0.00806782,2791.7,2790.9,0.87658917]
[1645218737142,0.00806782,2791.7,2790.7,0.53664128]
[1645218737143,0.89596,2791.6,2790.7,0.53664128]
[1645218737336,0.0024888,2791.4,2790.6,1.79185]
[1645218737739,0.0024888,2791.4,2790.4,1.1547]
[1645218737740,0.25,2791.3,2790.4,1.1547]
[1645218737939,0.00557908,2791.2,2790.3,1.79197]
[1645218738137,0.00557908,2791.2,2790.4,0.62959472]
[1645218738637,0.00248877,2791.1,2790.4,0.62959472]
[1645218739437,1.79776788,2791.2,2790.4,0.62959472]
[1645218739642,0.0024887,2791.1,2790.4,0.62959472]
[1645218740040,0.0024887,2791.1,2790.3,1.79197]
[1645218740340,0.89616,2791.0,2790.0,1.79215]
[1645218740539,0.00557908,2790.9,2790.0,1.79215]
[1645218741384,0.00557908,2790.9,2790.4,0.65784678]
[1645218741589,0.90420315,2791.1,2790.4,0.65784678]
[1645218741785,0.90171448,2791.1,2790.4,0.65784678]
[1645218742186,0.90420312,2791.1,2790.4,0.65784678]
[1645218742988,0.90171448,2791.1,2790.4,0.65784678]
[1645218743385,0.90420318,2791.1,2790.4,0.65784678]
[1645218743984,0.00806778,2791.1,2790.4,1.55389678]
[1645218744189,0.25,2791.3,2790.4,1.55389678]
[1645218744190,0.00557908,2791.2,2790.4,1.55389678]
[1645218744640,0.0024887,2791.1,2790.4,1.55389678]
[1645218745443,0.00557908,2791.2,2790.4,1.55389678]
[1645218745639,0.0024887,2791.1,2790.4,1.55389678]
[1645218745839,0.0024887,2791.1,2790.9,0.70337506]
[1645218746654,0.25,2791.3,2790.9,0.70337506]
[1645218746950,0.00248887,2791.1,2790.9,0.70337506]
[1645218747945,0.25557908,2791.3,2790.9,0.70337506]
[1645218748145,0.00248887,2791.1,2790.9,0.70337506]
[1645218748783,0.00248887,2791.1,2790.6,0.896]
[1645218748983,0.00557908,2791.2,2790.4,1.79193]
[1645218749382,0.00248887,2791.1,2790.4,1.79193]
[1645218749982,0.00248887,2791.1,2790.4,0.16775534]
[1645218750181,0.00557908,2791.2,2790.4,0.16775534]
[1645218750384,0.00557908,2791.2,2790.6,0.82775072]
[1645218750583,0.0024887,2791.1,2790.6,0.82775072]
[1645218751185,0.40939832,2791.1,2790.6,0.82775072]
[1645218751386,0.90165598,2791.2,2790.6,0.82775072]
[1645218751584,0.40690176,2791.1,2790.6,0.82775072]
[1645218751785,0.00248877,2791.1,2790.6,0.82775072]
[1645218751986,1.30550882,2791.1,2790.6,0.82775072]
[1645218752236,0.89860877,2791.1,2790.3,1.2464]
[1645218752432,0.00557908,2791.0,2790.2,0.89612]
[1645218752632,0.40750779,2790.9,2790.2,0.89612]
[1645218753244,0.00557908,2791.0,2790.2,0.89612]
[1645218753536,0.00557908,2791.0,2790.5,0.73508307]
[1645218753734,1.80032695,2791.1,2790.5,0.73508307]
[1645218753934,0.40755403,2791.0,2790.5,0.73508307]
[1645218754132,0.40755403,2791.0,2790.2,0.89612]
[1645218754339,0.00557908,2790.9,2790.0,1.79213]
[1645218754537,0.40755403,2790.8,2789.8,4.2283]
[1645218754735,0.25557908,2790.7,2789.8,4.2283]
[1645218755332,0.40802434,2790.6,2790.2,0.72773331]
[1645218755995,0.40802434,2790.6,2789.8,1.2077]
[1645218755996,0.70802434,2790.6,2789.8,1.2077]
[1645218756191,0.40802434,2790.5,2789.7,3.01266]
[1645218756390,0.40802434,2790.5,2789.7,1.79236]
[1645218756991,0.40802434,2790.5,2789.9,0.65169184]
[1645218757189,2.20064164,2790.5,2789.9,0.65169184]
[1645218757395,0.40802434,2790.4,2789.6,0.09609923]
[1645218758192,2.20075764,2790.4,2789.6,0.09609923]
[1645218758492,0.40802434,2790.3,2789.5,0.75117345]
[1645218758692,0.40802434,2790.2,2789.5,0.75117345]
[1645218759634,2.20091754,2790.2,2789.5,0.75117345]
[1645218759936,0.25,2790.3,2789.5,0.75117345]
[1645218759937,0.40802434,2790.1,2789.5,0.75117345]
[1645218760233,0.40802434,2790.0,2789.5,0.75117345]
[1645218760435,0.40802434,2789.9,2789.5,0.75117345]
[1645218760633,0.40802434,2789.8,2789.5,0.75117345]
[1645218760834,0.40802434,2789.7,2789.5,0.75117345]
[1645218761035,0.40802434,2789.6,2789.5,0.75117345]
[1645218761232,0.40802434,2789.9,2789.5,0.75117345]
[1645218761433,0.40802434,2789.8,2789.5,0.75117345]
[1645218761632,0.40802434,2789.7,2789.5,0.75117345]
[1645218761833,0.92099669,2790.3,2789.5,0.75117345]
[1645218761834,0.40802434,2789.6,2789.5,0.75117345]
[1645218762332,1.07902103,2790.2,2789.5,1.64750345]
[1645218762536,0.40802434,2790.1,2789.5,1.64750345]
[1645218762734,0.67099669,2790.1,2789.5,1.64750345]
[1645218762935,0.40802434,2790.0,2789.5,1.64750345]
[1645218763135,1.07902103,2790.2,2789.5,1.64750345]
[1645218763398,0.40802434,2790.1,2789.5,1.64750345]
[1645218763586,0.40802434,2790.0,2789.5,1.64750345]
[1645218763786,0.25,2790.3,2789.5,1.64750345]
[1645218763787,0.40802434,2789.9,2789.5,1.64750345]
[1645218763987,0.40802434,2789.8,2789.5,1.64750345]
[1645218764185,0.40802434,2789.7,2789.5,1.64750345]
[1645218764488,0.40802434,2789.6,2789.5,1.64750345]
[1645218764885,0.67099669,2790.1,2789.5,1.64750345]
[1645218765091,0.40802434,2790.0,2789.5,1.64750345]
[1645218765284,0.40802434,2789.9,2789.5,1.64750345]
[1645218765486,0.40802434,2789.8,2789.5,1.64750345]
[1645218765685,0.40802434,2789.7,2789.5,1.64750345]
[1645218765889,0.40802434,2789.6,2789.5,1.64750345]
[1645218766289,1.07902103,2790.2,2789.5,1.64750345]
[1645218766489,0.40802434,2790.1,2789.5,1.64750345]
[1645218766694,0.40802434,2790.0,2789.5,1.64750345]
[1645218766892,0.40802434,2789.9,2789.5,1.64750345]
[1645218767137,0.40802434,2789.8,2789.5,1.64750345]
[1645218767339,0.40802434,2789.7,2789.5,1.64750345]
[1645218767536,0.40802434,2789.6,2789.5,1.64750345]
[1645218768138,1.07902103,2790.2,2789.5,1.64750345]
[1645218768336,0.40802434,2790.1,2789.5,1.64750345]
[1645218768537,0.40802434,2790.0,2789.5,1.64750345]
[1645218768737,0.40802434,2789.9,2789.5,1.64750345]
[1645218768938,0.40802434,2789.8,2789.5,1.64750345]
[1645218769138,0.40802434,2789.7,2789.5,1.64750345]
[1645218769338,0.40802434,2789.6,2789.5,1.64750345]
[1645218769739,0.40802434,2790.0,2789.5,2.74470533]
[1645218769940,0.40802434,2789.9,2789.5,1.64750345]
[1645218770140,0.40802434,2789.8,2789.5,1.64750345]
[1645218770345,0.40802434,2789.7,2789.5,0.74967368]
[1645218770541,0.40802434,2789.6,2789.5,0.74967368]
[1645218770987,0.40802434,2789.6,2789.5,1.64600368]
[1645218771189,0.67099669,2790.2,2789.7,10.95]
[1645218771392,0.92099669,2790.6,2789.7,11.84609]
[1645218772088,0.92099669,2790.6,2790.4,0.86340983]
[1645218773391,0.25,2790.6,2790.4,0.86340983]
[1645218773595,0.92099669,2790.6,2790.4,0.86340983]
[1645218774389,0.67099669,2790.5,2790.4,0.86340983]
[1645218774646,0.25,2790.6,2790.0,1.79211]
[1645218774647,0.92099669,2790.6,2790.0,1.79211]
[1645218774843,0.67099669,2790.4,2789.7,2.93318]
[1645218775046,0.67099669,2790.4,2789.7,1.79228]
[1645218775244,0.67099669,2790.3,2789.7,1.79228]
[1645218775945,0.67099669,2790.3,2790.1,0.68776916]
[1645218776146,0.67099669,2790.2,2790.1,0.68776916]
[1645218778147,0.67099669,2790.4,2790.1,0.68776916]
[1645218778786,0.67099669,2790.5,2790.1,0.68776916]
[1645218778985,0.92099669,2790.6,2790.1,0.68776916]
[1645218779786,0.67099669,2790.5,2790.1,0.68776916]
[1645218780183,0.92099669,2790.6,2790.1,0.68776916]
[1645218780383,0.92099669,2790.6,2790.2,1.79207]
[1645218782434,0.67099669,2790.5,2790.2,1.79207]
[1645218782935,0.92099669,2790.6,2790.2,1.79207]
[1645218783736,0.67099669,2790.5,2790.2,1.79207]
[1645218783932,0.67099669,2790.5,2790.1,0.68776916]
[1645218784334,0.62099669,2790.5,2790.1,0.83107616]
[1645218784833,0.25,2790.6,2790.1,0.68776916]
[1645218790327,0.25,2790.6,2790.1,0.33598915]
[1645218791232,0.38116372,2790.5,2790.2,1.13038777]
[1645218791527,0.38116372,2790.5,2790.2,2.02649777]
[1645218791827,0.38116372,2790.5,2790.2,0.89611]
[1645218792838,0.38116372,2790.5,2790.0,1.79207]
[1645218793033,1.27742372,2790.5,2789.6,1.1652]
[1645218793234,2.17208598,2790.5,2789.7,1.13149035]
[1645218793693,0.38116372,2790.4,2789.7,1.13149035]
[1645218793895,1.27582598,2790.4,2789.7,1.13149035]
[1645218794087,0.38116372,2790.3,2789.7,1.90483916]
[1645218794289,1.06364827,2790.2,2789.8,1.13128783]
[1645218794488,0.68248455,2790.2,2789.8,1.13128783]
[1645218794694,0.68248455,2790.1,2789.7,0.77334881]
[1645218795187,0.68248455,2790.1,2789.3,0.89638]
[1645218795387,0.68248455,2790.1,2789.4,1.1312667]
[1645218795587,0.25,2790.0,2789.4,1.1312667]
[1645218795790,0.38116372,2789.9,2789.4,1.1312667]
[1645218796393,0.38116372,2789.9,2789.4,1.83592246]
[1645218796588,0.38116372,2789.9,2789.5,1.1312667]
[1645218797436,0.38116372,2789.8,2789.5,1.1312667]
[1645218797743,0.25,2790.0,2789.5,1.1312667]
[1645218797744,0.38116372,2789.7,2789.5,1.1312667]
[1645218797934,0.25,2790.0,2789.5,1.1312667]
[1645218797935,0.38116372,2789.6,2789.5,1.1312667]
[1645218798135,0.38116372,2789.9,2789.5,1.1312667]
[1645218799536,0.38116372,2789.9,2789.5,2.0275967]
[1645218799738,0.38116372,2789.9,2789.6,1.1312667]
[1645218799941,0.38116372,2789.8,2789.6,1.1312667]
[1645218800342,0.68248455,2790.7,2789.7,10.95]
[1645218800539,0.37247716,2790.7,2789.9,10.95]
[1645218800741,0.37247716,2790.6,2790.0,1.81145204]
[1645218800994,0.68248455,2791.2,2790.3,10.95]
[1645218800995,0.37247716,2790.5,2790.3,10.95]
[1645218801200,0.00792056,2791.1,2790.4,12.0812667]
[1645218801396,0.37230312,2791.0,2790.5,12.0812667]
[1645218801604,0.37230312,2791.0,2790.6,1.1312667]
[1645218801896,0.37230312,2790.9,2790.6,2.0270367]
[1645218802095,0.37230312,2790.8,2790.7,1.1312667]
[1645218802495,0.37230312,2790.8,2790.7,1.93556723]
[1645218803098,0.37230312,2791.2,2790.7,1.93556723]
[1645218803304,0.37230312,2791.1,2790.8,1.1381172]
[1645218803498,0.37230312,2791.0,2790.8,1.1381172]
[1645218803699,0.37230312,2790.9,2790.7,1.70024053]
[1645218804008,0.32230312,2790.8,2790.7,0.80430053]
[1645218804302,0.00557908,2791.3,2790.7,0.80430053]
[1645218804303,0.00557908,2791.3,2790.7,1.94193904]
[1645218804635,0.00234181,2791.1,2790.7,0.80430053]
[1645218805238,0.00234181,2791.1,2790.7,1.70017053]
[1645218805437,0.00234181,2791.1,2790.7,2.59605053]
[1645218805638,0.00557908,2791.3,2790.7,12.65017053]
[1645218805839,0.0023419,2791.1,2790.7,12.65017053]
[1645218806043,0.0023419,2791.1,2790.7,1.70017053]
[1645218806538,0.0023419,2791.1,2790.8,10.95]
[1645218806737,0.00557908,2791.3,2791.2,0.7631145]
[1645218806949,0.25,2791.4,2791.2,0.7631145]
[1645218808142,0.25234189,2791.4,2791.2,0.7631145]
[1645218809085,0.25,2791.4,2791.2,0.7631145]
[1645218809490,0.00234189,2791.4,2791.2,0.7631145]
[1645218810291,0.93806363,2792.0,2791.3,10.95]
[1645218810494,0.25557908,2792.0,2791.3,11.25]
[1645218810691,0.00557908,2792.0,2791.6,0.89541]
[1645218810891,0.00557908,2792.5,2791.7,14.45]
[1645218811090,0.00557908,2792.5,2791.7,10.95]
[1645218811289,0.68248455,2792.7,2791.7,10.95]
[1645218811290,0.00557908,2792.6,2792.4,0.8201312]
[1645218811490,0.68806363,2792.9,2792.4,0.8201312]
[1645218811690,0.68248455,2792.8,2792.4,0.8201312]
[1645218812760,0.68248455,2792.9,2792.4,0.8201312]
[1645218812958,0.00234157,2792.7,2792.4,0.8201312]
[1645218813956,0.00557908,2792.9,2792.4,0.8201312]
[1645218814156,0.00234332,2792.7,2792.4,0.8201312]
[1645218814357,0.00234332,2792.7,2792.5,1.79056]
[1645218815158,0.68806363,2793.2,2792.5,1.79056]
[1645218815358,0.00234331,2792.7,2792.5,1.79056]
[1645218815561,0.00234331,2792.7,2792.5,2.68587]
[1645218816295,0.00557908,2793.2,2792.5,2.68587]
[1645218816498,0.00557908,2793.2,2792.9,0.68565164]
[1645218816696,0.68248455,2793.2,2792.9,0.68565164]
[1645218817302,0.93248455,2793.3,2792.9,0.68565164]
[1645218817596,0.25,2793.3,2792.9,0.68565164]
[1645218817798,0.00234132,2793.2,2792.9,0.68565164]
[1645218818797,0.25,2793.3,2792.9,0.68565164]
[1645218818998,0.25,2793.3,2792.5,1.79056]
[1645218818999,0.00234132,2793.2,2792.5,1.79056]
[1645218819198,0.9033128,2793.2,2792.5,1.79056]
[1645218820054,0.90097148,2793.2,2792.8,0.87189899]
[1645218820250,0.00234137,2793.0,2792.8,0.87189899]
[1645218821245,1.7907924,2793.2,2792.8,0.87189899]
[1645218821446,0.00234148,2793.0,2792.8,0.87189899]
[1645218822252,1.79329548,2793.0,2791.9,6.93615]
[1645218822455,0.00557908,2792.9,2792.0,0.89546]
[1645218822648,0.25557908,2792.9,2792.0,0.89546]
[1645218823248,0.25557908,2792.9,2792.4,0.85389698]
[1645218823487,0.25,2792.9,2792.5,0.89536]
[1645218823890,0.00234158,2792.6,2792.4,0.85389698]
[1645218824587,0.29375491,2792.7,2792.4,0.85389698]
[1645218824787,0.25,2792.9,2792.4,0.85389698]
[1645218828562,0.0024885,2792.8,2792.4,0.85389698]
[1645218829645,0.8953882,2793.2,2792.4,0.85389698]
[1645218829839,0.00248851,2792.7,2792.5,0.89538]
[1645218830442,0.00248851,2792.7,2792.4,0.12622575]
[1645218830884,0.8953882,2793.2,2792.4,0.12622575]
[1645218831087,0.00248851,2792.7,2792.5,1.79069]
[1645218831888,0.8953046,2793.5,2792.5,1.79069]
[1645218832286,0.00248851,2792.7,2792.5,1.79069]
[1645218833087,0.8953046,2793.5,2792.5,1.79069]
[1645218833292,0.8953046,2793.5,2793.2,0.79309431]
[1645218834648,0.89779294,2793.5,2793.2,0.79309431]
[1645218835037,0.00248834,2793.5,2793.2,0.79309431]
[1645218835637,2.957,2794.1,2793.2,0.79309431]
[1645218835835,0.00248834,2793.5,2793.2,0.79309431]
[1645218836435,0.00248834,2793.5,2793.3,2.6848]
[1645218836935,0.68248455,2794.1,2793.3,2.6848]
[1645218837135,0.00248833,2793.5,2793.3,0.89494]
[1645218837337,0.00248833,2793.5,2793.2,0.79309431]
[1645218837936,0.25,2793.6,2793.2,0.79309431]
[1645218838136,1.57759415,2794.1,2793.2,1.68818431]
[1645218838387,0.00248834,2793.5,2793.3,0.89508]
[1645218838786,0.00248834,2793.5,2793.4,0.66003272]
[1645218839186,1.7901996,2794.1,2793.4,0.66003272]
[1645218839386,0.00248832,2793.6,2793.4,0.66003272]
[1645218840491,1.7901996,2794.1,2793.4,0.66003272]
[1645218840689,0.00248831,2793.6,2793.4,0.66003272]
[1645218841695,2.47268415,2794.1,2793.4,0.66003272]
[1645218841890,0.00248831,2793.6,2793.4,0.66003272]
[1645218842942,2.47268415,2794.1,2793.4,0.66003272]
[1645218843136,0.00248831,2793.6,2793.4,0.66003272]
[1645218843941,0.68248455,2793.9,2793.4,0.66003272]
[1645218844143,0.68248455,2793.8,2792.9,1.79024]
[1645218844340,0.00248831,2793.6,2792.9,1.79024]
[1645218844946,0.96880701,2793.6,2792.9,1.79024]
[1645218845147,5.20384897,2793.5,2792.2,2.2163]
[1645218845344,0.25,2793.2,2792.1,4.3407]
[1645218845549,0.28383415,2793.1,2792.1,4.3407]
[1645218846181,0.28383415,2793.1,2792.2,0.8954]
[1645218846583,0.00248851,2792.7,2792.2,1.79082]
[1645218846883,0.00248851,2792.7,2792.5,0.65615112]
[1645218847685,0.28383415,2793.1,2792.5,0.65615112]
[1645218847883,0.00248851,2792.7,2792.5,0.65615112]
[1645218848884,0.28383415,2793.1,2792.5,1.55148112]
[1645218849085,0.00248851,2792.7,2792.5,1.55148112]
[1645218850034,0.28383415,2793.0,2792.5,1.55148112]
[1645218850234,0.00248851,2792.7,2792.5,1.55148112]
[1645218850437,0.00248851,2792.7,2792.5,0.96582459]
[1645218850837,0.68248455,2793.4,2792.6,17.75]
[1645218851035,0.68248455,2793.7,2792.7,0.89508]
[1645218851234,0.68248455,2793.7,2792.8,0.3]
[1645218851434,0.68248455,2793.7,2793.6,0.78034746]
[1645218852236,0.6800358,2793.7,2793.6,0.78034746]
[1645218852435,0.89466226,2793.9,2793.6,0.78034746]
[1645218852837,0.89466226,2793.8,2793.6,0.78034746]
[1645218853687,1.59199339,2794.1,2793.6,0.78034746]
[1645218853688,0.89466226,2793.9,2793.6,0.78034746]
[1645218853890,0.89466226,2793.9,2793.6,1.67531746]
[1645218853891,0.6802886,2793.9,2793.6,1.67531746]
[1645218854088,0.9302886,2794.1,2793.6,1.67531746]
[1645218854289,0.6802886,2794.1,2793.6,1.67531746]
[1645218854485,0.6802886,2794.2,2793.6,1.67531746]
[1645218854684,0.6802886,2794.1,2793.7,1.78969]
[1645218854885,3.74129339,2794.6,2793.7,2.68447]
[1645218854886,0.6802886,2794.0,2793.7,2.68447]
[1645218855186,0.00248822,2794.0,2793.8,0.89479]
[1645218855388,0.00248822,2794.0,2793.8,1.89479]
[1645218855985,0.6802886,2794.1,2793.8,1.89479]
[1645218856192,0.6802886,2794.1,2793.7,2.68447]
[1645218856388,0.00248822,2794.0,2793.6,1.67531746]
[1645218856588,0.68277682,2794.0,2793.6,1.67531746]
[1645218857362,0.6802886,2794.0,2793.6,1.67531746]
[1645218857561,0.00248824,2793.9,2793.6,1.67531746]
[1645218857963,0.68277684,2793.9,2793.6,1.67531746]
[1645218858162,0.68277684,2793.9,2793.6,2.57027746]
[1645218858366,0.6802886,2794.0,2793.6,2.57027746]
[1645218858666,0.00248825,2793.9,2793.6,2.57027746]
[1645218859266,0.00248825,2793.9,2793.7,1.78967]
[1645218859666,0.25555119,2794.2,2793.7,1.78967]
[1645218859865,0.00248824,2793.9,2793.6,2.57027746]
[1645218860265,0.00248824,2793.9,2793.6,1.67531746]
[1645218860990,0.93583979,2794.2,2793.6,1.67531746]
[1645218861189,0.0024175,2793.9,2793.6,3.46505746]
[1645218861984,0.25555119,2794.2,2793.6,1.67531746]
[1645218862194,0.93583979,2794.2,2793.6,0.78034746]
[1645218862384,0.79723543,2794.1,2793.4,0.89503]
[1645218862595,0.79723543,2794.1,2793.3,0.143153]
[1645218862596,0.0024175,2793.9,2793.3,0.143153]
[1645218862786,0.0024175,2793.9,2792.7,0.04609923]
[1645218862787,0.6802886,2793.8,2792.7,0.04609923]
[1645218862988,0.9302886,2793.6,2792.3,5.4971]
[1645218863188,0.00555119,2793.5,2792.3,5.4971]
[1645218863384,0.77814624,2793.3,2792.6,0.73486721]
[1645218863591,0.00555119,2793.2,2792.6,0.73486721]
[1645218863984,0.00555119,2793.2,2792.6,1.63012721]
[1645218864186,0.0024176,2793.4,2792.6,1.63012721]
[1645218864388,0.00555119,2793.5,2792.6,1.63012721]
[1645218864658,0.89529,2793.4,2792.6,0.73486721]
[1645218864849,0.00239554,2793.0,2792.6,0.73486721]
[1645218865051,0.25239554,2793.0,2792.6,0.73486721]
[1645218865649,0.25,2793.0,2792.6,0.73486721]
[1645218865848,0.00239556,2792.9,2792.6,0.73486721]
[1645218866851,0.25,2793.0,2792.6,0.73486721]
[1645218867050,0.00224189,2792.9,2792.6,0.67868075]
[1645218868049,0.25,2793.0,2792.6,0.67868075]
[1645218868251,0.00224508,2792.9,2792.6,0.67868075]
[1645218869096,0.00224508,2792.9,2792.5,1.79051]
[1645218869299,0.25,2793.0,2792.0,3.88133475]
[1645218869300,0.25,2793.0,2792.1,0.143197]
[1645218869496,0.25,2793.0,2792.0,2.3923]
[1645218869497,0.89774648,2792.9,2792.0,2.3923]
[1645218869895,0.89774648,2792.9,2791.8,0.04609923]
[1645218870298,0.78449868,2792.5,2791.8,0.93862931]
[1645218870496,0.78449868,2792.5,2791.8,0.94163923]
[1645218870698,1.03449868,2792.5,2791.8,0.89554]
[1645218870901,0.26624275,2792.4,2791.9,1.2377967]
[1645218871698,0.26624275,2792.4,2792.0,0.84440763]
[1645218872154,0.26624275,2792.4,2792.1,1.23815127]
[1645218872345,1.16187105,2792.4,2791.6,0.00718922]
[1645218872546,0.26624275,2792.3,2791.7,1.23744821]
[1645218873148,0.26624275,2792.3,2791.4,1.0460966]
[1645218873342,0.26624275,2792.3,2791.7,0.6935626]
[1645218873343,1.16189275,2792.3,2791.7,0.6935626]
[1645218873546,0.26624275,2792.2,2791.8,1.23714188]
[1645218873744,1.03449868,2792.5,2791.8,1.23714188]
[1645218873745,0.26624275,2792.1,2791.8,1.23714188]
[1645218873944,0.26624275,2792.0,2791.8,1.23714188]
[1645218874150,0.25,2792.5,2791.8,1.23714188]
[1645218874346,0.26601702,2792.4,2791.8,1.23714188]
[1645218875879,1.13128371,2792.4,2791.8,1.23714188]
[1645218876080,0.26601702,2792.3,2791.8,1.23714188]
[1645218876280,0.26601702,2792.3,2791.7,0.6935626]
[1645218876881,0.26601702,2792.3,2791.5,0.00719056]
[1645218877081,0.26601702,2792.3,2791.6,1.23704699]
[1645218877284,0.8957682,2792.2,2791.6,1.23704699]
[1645218877482,1.16177702,2792.1,2791.6,1.23704699]
[1645218877682,0.26601702,2792.0,2791.6,1.23704699]
[1645218877882,0.26601702,2792.0,2791.7,1.23704699]
[1645218878082,0.51601702,2792.0,2791.5,0.67741507]
[1645218878283,0.2658635,2791.9,2791.6,1.23727393]
[1645218879944,0.25,2792.0,2791.6,1.23727393]
[1645218881450,0.00225369,2792.8,2792.1,0.16205575]
[1645218881749,0.5225493,2792.8,2792.1,0.16205575]
[1645218882147,0.27029561,2792.7,2792.1,0.16205575]
[1645218882348,0.27029561,2792.7,2792.2,2.670691]
[1645218883588,0.27029561,2792.7,2792.2,0.879931]
[1645218885892,0.27029561,2792.7,2792.1,0.16205575]
[1645218885893,1.16583481,2792.7,2792.1,0.16205575]
[1645218886095,0.27029561,2792.6,2792.1,0.16205575]
[1645218886492,0.27029561,2792.5,2792.1,0.16205575]
[1645218886693,0.27029561,2792.4,2792.1,0.16205575]
[1645218886891,0.27029561,2792.3,2792.1,0.16205575]
[1645218887158,1.16602661,2792.3,2792.1,0.16205575]
[1645218887340,0.27029561,2792.2,2792.1,0.16205575]
[1645218894495,1.02645074,2792.4,2792.1,0.16205575]
[1645218894496,0.27029561,2792.3,2792.1,0.16205575]
[1645218894743,0.27029561,2792.2,2792.1,0.16205575]